bitfinex/quotes_SOLUSD_20241210
["timestamp","ask_amount","ask_price","bid_price","bid_amount"]
[1733870126535,21.6557,214.63,214.55,0.25098]
[1733870127119,21.6557,214.63,214.55,312.25098]
[1733870128027,1.6557,214.71,214.61,0.25098]
[1733870128235,1.6557,214.71,214.62,0.25098]
[1733870128910,1.6557,214.71,214.61,0.25098]
[1733870129226,4.47949334,214.71,214.61,0.25098]
[1733870129426,4.47949334,214.71,214.61,0.12549]
[1733870129726,4.47949334,214.71,214.6,0.25098]
[1733870129923,20.0,214.7,214.6,0.25098]
[1733870130641,20.0,214.68,214.6,0.25098]
[1733870130937,20.0,214.68,214.61,0.12549]
[1733870132215,20.0,214.68,214.56,0.12549]
[1733870132418,20.0,214.67,214.55,9.17618538]
[1733870133020,20.0,214.67,214.56,0.25098]
[1733870133539,20.0,214.67,214.55,0.25098]
[1733870133836,20.0,214.67,214.56,0.12549]
[1733870134219,20.0,214.66,214.56,0.12549]
[1733870134416,20.0,214.65,214.56,0.12549]
[1733870134943,20.0,214.67,214.56,0.12549]
[1733870135124,20.0,214.66,214.57,0.25098]
[1733870135325,20.0,214.66,214.58,0.12549]
[1733870135523,20.0,214.65,214.58,0.12549]
[1733870138817,20.0,214.65,214.54,7.8599]
[1733870139021,20.0,214.65,214.55,0.12549]
[1733870139336,20.0,214.64,214.55,0.37647]
[1733870139829,20.0,214.65,214.55,0.37647]
[1733870141239,20.0,214.65,214.52,0.12549]
[1733870141465,20.0,214.63,214.52,0.12549]
[1733870141748,20.0,214.62,214.52,312.37647]
[1733870142444,20.0,214.62,214.52,321.55265538]
[1733870143549,20.0,214.61,214.52,321.55265538]
[1733870143746,20.0,214.61,214.52,312.37647]
[1733870144242,20.0,214.61,214.49,26.874273]
[1733870144414,20.0,214.61,214.49,8.2094]
[1733870145040,20.0,214.6,214.5,0.25098]
[1733870145629,20.0,214.6,214.51,0.12549]
[1733870149949,20.0,214.6,214.53,0.12549]
[1733870151547,7.22343731,214.64,214.56,0.12549]
[1733870151722,20.0,214.61,214.56,0.12549]
[1733870152056,0.42553192,214.6,214.56,0.12549]
[1733870152851,0.42553192,214.6,214.57,0.25098]
[1733870153022,0.42553192,214.6,214.58,0.12549]
[1733870159044,0.42553192,214.6,214.59,0.37647]
[1733870161764,0.42553192,214.6,214.59,1.07529708]
[1733870163356,0.42553192,214.6,214.59,10.25148246]
[1733870164738,0.42553192,214.6,214.59,322.25148246]
[1733870164933,0.42553192,214.6,214.59,312.37647]
[1733870168745,0.42553192,214.6,214.59,336.153354]
[1733870169350,0.42553192,214.6,214.59,345.32953938]
[1733870183448,0.42553192,214.6,214.59,336.153354]
[1733870183643,0.42553192,214.6,214.59,345.32953938]
[1733870183864,0.42553192,214.6,214.59,312.37647]
[1733870185175,0.42553192,214.6,214.59,0.37647]
[1733870185374,0.42553192,214.6,214.54,0.69891522]
[1733870185873,0.42553192,214.6,214.55,0.25098]
[1733870186670,0.42553192,214.6,214.54,9.8751006]
[1733870187680,0.42553192,214.6,214.55,0.25098]
[1733870187871,0.42553192,214.6,214.56,0.12549]
[1733870188173,0.42553192,214.6,214.57,0.25098]
[1733870188764,0.42553192,214.6,214.57,0.12549]
[1733870188960,0.42553192,214.6,214.49,9.30167538]
[1733870189471,0.42553192,214.6,214.51,0.12549]
[1733870190678,0.42553192,214.6,214.5,0.12549]
[1733870191468,0.42553192,214.6,214.5,0.25098]
[1733870191957,0.42553192,214.6,214.52,0.37647]
[1733870196159,0.42553192,214.6,214.52,312.37647]
[1733870197179,2.34547937,214.6,214.52,312.37647]
[1733870197560,2.34547937,214.6,214.52,312.12549]
[1733870197761,2.34547937,214.6,214.49,0.12549]
[1733870198162,2.34547937,214.6,214.49,9.55265538]
[1733870199280,2.34547937,214.6,214.49,0.37647]
[1733870199480,2.34547937,214.6,214.49,9.55265538]
[1733870200684,2.34547937,214.6,214.49,321.55265538]
[1733870201279,2.34547937,214.6,214.49,312.37647]
[1733870201983,1.6384,214.59,214.49,312.37647]
[1733870202370,1.6384,214.59,214.49,321.55265538]
[1733870202685,20.0,214.55,214.44,9.17618538]
[1733870203259,20.0,214.55,214.45,0.25098]
[1733870203459,0.42553192,214.54,214.45,18.796915]
[1733870203880,0.42553192,214.54,214.43,9.17618538]
[1733870204261,0.42553192,214.54,214.44,18.672053]
[1733870204862,0.42553192,214.54,214.45,0.25098]
[1733870215770,0.42553192,214.54,214.45,312.25098]
[1733870222100,0.42553192,214.54,214.45,312.12549]
[1733870222502,0.42553192,214.54,214.45,0.12549]
[1733870224578,20.0,214.5,214.32,6.0668]
[1733870224889,20.0,214.5,214.4,0.12549]
[1733870224890,0.85106383,214.49,214.4,0.12549]
[1733870225395,0.85106383,214.49,214.39,330.672053]
[1733870225701,0.85106383,214.49,214.37,0.25098]
[1733870225886,0.85106383,214.49,214.39,0.12549]
[1733870226770,20.0,214.45,214.32,6.0668]
[1733870226976,20.0,214.45,214.35,0.25098]
[1733870227197,20.0,214.45,214.37,0.12549]
[1733870231412,20.0,214.45,214.36,0.12549]
[1733870233006,20.0,214.45,214.34,0.12549]
[1733870234293,20.0,214.45,214.34,312.12549]
[1733870234494,20.0,214.43,214.34,312.12549]
[1733870234788,20.0,214.43,214.35,0.12549]
[1733870239124,21.83582518,214.43,214.35,0.12549]
[1733870241033,21.83582518,214.43,214.29,1.644]
[1733870241232,20.0,214.39,214.3,0.12549]
[1733870241410,20.0,214.39,214.29,10.82018538]
[1733870241618,21.6023,214.39,214.29,9.17618538]
[1733870241835,0.85106383,214.38,214.29,321.17618538]
[1733870242022,0.85106383,214.38,214.3,0.25098]
[1733870242414,0.85106383,214.38,214.29,0.25098]
[1733870243236,0.85106383,214.38,214.3,0.12549]
[1733870244326,0.85106383,214.38,214.28,0.12549]
[1733870244629,0.85106383,214.38,214.29,0.25098]
[1733870245003,0.85106383,214.38,214.27,0.12549]
[1733870245401,0.85106383,214.38,214.28,0.25098]
[1733870246325,0.85106383,214.38,214.27,0.12549]
[1733870246704,0.85106383,214.38,214.26,0.25098]
[1733870246904,0.85106383,214.38,214.27,0.12549]
[1733870248327,0.85106383,214.38,214.24,0.12549]
[1733870248328,20.85106383,214.38,214.24,0.12549]
[1733870248551,20.0,214.36,214.25,9.17618538]
[1733870248724,20.0,214.36,214.26,0.37647]
[1733870249061,0.85106383,214.35,214.26,312.37647]
[1733870253522,2.74546907,214.35,214.26,312.37647]
[1733870253724,0.85106383,214.35,214.26,312.37647]
[1733870254333,0.85106383,214.35,214.26,312.12549]
[1733870255530,0.85106383,214.35,214.24,0.37647]
[1733870257447,20.0,214.31,214.18,1.6048]
[1733870257659,20.0,214.31,214.19,0.25098]
[1733870257826,0.85106383,214.3,214.19,0.25098]
[1733870258032,7.7723,214.29,214.19,0.12549]
[1733870258232,7.7723,214.29,214.19,0.25098]
[1733870258425,0.85106383,214.28,214.19,312.25098]
[1733870258728,0.85106383,214.28,214.2,0.12549]
[1733870259131,0.85106383,214.28,214.19,312.12549]
[1733870259329,20.0,214.26,214.19,312.0]
[1733870259531,20.0,214.26,214.14,20.5550767]
[1733870259752,0.85106383,214.25,214.17,0.25098]
[1733870260171,0.85106383,214.25,214.14,20.5550767]
[1733870260172,0.85106383,214.25,214.14,0.5550767]
[1733870261570,0.85106383,214.25,214.15,0.25098]
[1733870262654,0.85106383,214.25,214.15,312.25098]
[1733870265375,1.6652,214.24,214.14,0.5550767]
[1733870265547,1.6652,214.24,214.15,0.12549]
[1733870265750,0.85106383,214.23,214.15,0.12549]
[1733870265968,0.85106383,214.23,214.14,0.5550767]
[1733870266279,0.85106383,214.23,214.15,0.25098]
[1733870266978,0.85106383,214.23,214.17,0.25098]
[1733870267965,0.85106383,214.23,214.18,0.12549]
[1733870268251,0.85106383,214.23,214.19,0.25098]
[1733870269583,0.85106383,214.23,214.2,0.12549]
[1733870270499,0.85106383,214.23,214.22,0.12549]
[1733870271682,0.85106383,214.23,214.22,33.32953938]
[1733870271847,0.85106383,214.23,214.22,34.02951246]
[1733870272395,0.85106383,214.23,214.22,346.02951246]
[1733870272558,0.85106383,214.23,214.22,345.32953938]
[1733870274371,7.22343731,214.51,214.27,20.37647]
[1733870274372,1.6652,214.42,214.27,20.37647]
[1733870274694,1.6652,214.42,214.32,0.12549]
[1733870276986,1.6652,214.42,214.33,0.25098]
[1733870277561,1.6652,214.42,214.33,312.25098]
[1733870277772,1.6652,214.42,214.33,321.42716538]
[1733870278091,1.6652,214.42,214.33,9.42716538]
[1733870279355,1.6652,214.42,214.33,0.25098]
[1733870281064,1.6652,214.42,214.35,312.0]
[1733870282091,1.6652,214.42,214.33,0.25098]
[1733870284577,1.6652,214.42,214.25,6.5816]
[1733870284781,20.0,214.38,214.27,9.17618538]
[1733870285166,20.0,214.38,214.28,0.25098]
[1733870285366,20.0,214.38,214.27,321.17618538]
[1733870285586,20.0,214.38,214.27,9.17618538]
[1733870285899,20.0,214.38,214.28,0.12549]
[1733870286106,20.0,214.38,214.28,0.25098]
[1733870286981,20.0,214.38,214.27,9.17618538]
[1733870286982,20.0,214.38,214.27,0.12549]
[1733870288719,20.0,214.38,214.29,0.25098]
[1733870288892,20.0,214.38,214.28,312.0]
[1733870289219,20.0,214.38,214.25,6.5816]
[1733870289515,20.0,214.38,214.26,0.25098]
[1733870289696,26.2879,214.38,214.26,0.25098]
[1733870290033,26.2879,214.38,214.25,0.25098]
[1733870290806,26.2879,214.38,214.24,0.12549]
[1733870292183,26.2879,214.38,214.26,0.25098]
[1733870292685,26.2879,214.38,214.25,0.25098]
[1733870295196,20.0,214.33,214.18,1.5953]
[1733870295411,20.0,214.33,214.19,9.17618538]
[1733870295605,20.0,214.33,214.21,312.25098]
[1733870296418,20.0,214.33,214.18,18.691395]
[1733870296743,20.0,214.29,214.17,9.17618538]
[1733870296900,20.0,214.29,214.18,0.25098]
[1733870297433,20.0,214.29,214.17,0.25098]
[1733870297621,20.0,214.29,214.17,9.42716538]
[1733870297824,20.0,214.29,214.18,0.12549]
[1733870299418,20.0,214.29,214.19,0.25098]
[1733870303024,20.0,214.29,214.21,0.25098]
[1733870303410,20.0,214.29,214.19,0.25098]
[1733870305121,21.86209609,214.29,214.19,0.25098]
[1733870306415,21.86209609,214.29,214.21,312.0]
[1733870308414,20.0,214.29,214.21,312.0]
[1733870309923,20.0,214.29,214.22,0.25098]
[1733870310112,20.0,214.29,214.21,0.12549]
[1733870310443,20.0,214.29,214.22,0.12549]
[1733870310660,7.5679,214.32,214.23,0.12549]
[1733870310831,1.5188,214.32,214.24,0.12549]
[1733870313035,1.5188,214.32,214.25,312.0]
[1733870315362,20.0,214.31,214.25,312.0]
[1733870315854,20.0,214.31,214.21,0.25098]
[1733870318966,20.0,214.31,214.23,312.0]
[1733870321433,1.5188,214.32,214.23,312.0]
[1733870321965,1.5188,214.32,214.24,0.25098]
[1733870322732,1.5188,214.32,214.21,0.25098]
[1733870322938,1.5188,214.32,214.24,0.25098]
[1733870323541,1.5188,214.32,214.21,0.25098]
[1733870323738,1.5188,214.32,214.23,0.25098]
[1733870324062,1.5188,214.32,214.25,0.25098]
[1733870324956,1.5188,214.32,214.25,312.0]
[1733870325377,20.0,214.31,214.25,312.0]
[1733870329974,20.0,214.33,214.27,0.12549]
[1733870330268,1.5057,214.38,214.28,0.25098]
[1733870330982,1.5057,214.38,214.25,0.12549]
[1733870331165,1.5057,214.38,214.25,0.37647]
[1733870331349,20.0,214.34,214.25,0.37647]
[1733870332272,20.0,214.34,214.2,0.69988179]
[1733870332454,20.0,214.34,214.23,0.12549]
[1733870332661,20.0,214.34,214.23,0.37647]
[1733870333087,20.0,214.34,214.26,0.25098]
[1733870333481,20.0,214.34,214.25,0.25098]
[1733870334069,20.0,214.33,214.22,9.17618538]
[1733870334279,20.0,214.33,214.23,0.25098]
[1733870335406,20.0,214.32,214.23,0.25098]
[1733870335573,20.0,214.32,214.25,0.25098]
[1733870335902,8.4514593,214.37,214.25,0.25098]
[1733870335903,20.0,214.34,214.25,0.25098]
[1733870336069,20.0,214.33,214.25,0.25098]
[1733870336488,20.0,214.33,214.25,312.25098]
[1733870338081,20.0,214.32,214.25,312.25098]
[1733870338596,20.0,214.32,214.25,0.25098]
[1733870339191,20.0,214.31,214.25,0.25098]
[1733870340091,14.44687462,214.36,214.25,0.25098]
[1733870340092,20.0,214.32,214.25,0.25098]
[1733870341275,20.0,214.31,214.25,0.25098]
[1733870341469,20.0,214.31,214.25,312.0]
[1733870341689,21.547,214.3,214.16,6.3646]
[1733870341883,20.0,214.29,214.18,9.17618538]
[1733870342276,20.0,214.26,214.19,0.25098]
[1733870343477,20.0,214.27,214.17,0.25098]
[1733870343680,20.0,214.26,214.19,0.25098]
[1733870344488,20.0,214.28,214.19,0.25098]
[1733870344807,20.0,214.27,214.2,0.25098]
[1733870345878,20.0,214.28,214.2,0.25098]
[1733870346275,20.0,214.27,214.2,0.25098]
[1733870347978,20.0,214.27,214.17,0.25098]
[1733870348176,20.0,214.27,214.2,0.25098]
[1733870350190,20.0,214.28,214.2,0.25098]
[1733870350604,20.0,214.28,214.22,0.12549]
[1733870351285,20.0,214.28,214.2,0.25098]
[1733870354214,20.0,214.28,214.2,312.25098]
[1733870354783,20.0,214.27,214.19,9.17618538]
[1733870354987,20.0,214.28,214.16,6.3646]
[1733870355192,20.0,214.27,214.17,9.17618538]
[1733870355610,20.0,214.27,214.18,0.12549]
[1733870356822,20.0,214.27,214.18,0.25098]
[1733870357922,20.0,214.27,214.18,312.25098]
[1733870360113,20.0,214.27,214.18,312.0]
[1733870360319,23.776884,214.26,214.18,312.0]
[1733870362518,20.0,214.27,214.19,0.12549]
[1733870362730,10.66912825,214.3,214.19,0.12549]
[1733870362731,20.0,214.28,214.19,0.12549]
[1733870363230,3.44569094,214.3,214.18,0.25098]
[1733870363231,20.0,214.27,214.18,0.25098]
[1733870363924,20.0,214.28,214.18,0.25098]
[1733870364501,20.0,214.27,214.18,0.25098]
[1733870364814,20.0,214.28,214.18,0.25098]
[1733870366108,20.0,214.27,214.18,0.25098]
[1733870366421,20.0,214.27,214.18,312.25098]
[1733870366800,20.0,214.28,214.18,0.25098]
[1733870368305,20.0,214.27,214.18,0.25098]
[1733870369801,3.44569094,214.3,214.18,312.25098]
[1733870370000,20.0,214.28,214.18,312.25098]
[1733870371426,20.0,214.28,214.18,0.25098]
[1733870371618,20.0,214.27,214.18,0.25098]
[1733870374419,20.0,214.27,214.21,0.12549]
[1733870374934,20.0,214.27,214.19,0.12549]
[1733870375132,20.0,214.28,214.19,0.12549]
[1733870376102,20.0,214.27,214.19,0.12549]
[1733870377915,20.0,214.28,214.2,0.12549]
[1733870378430,20.0,214.27,214.17,9.17618538]
[1733870378617,20.0,214.27,214.18,0.25098]
[1733870379631,20.0,214.28,214.18,0.25098]
[1733870380137,20.0,214.27,214.18,0.25098]
[1733870380717,20.0,214.28,214.18,0.25098]
[1733870381223,20.0,214.28,214.2,0.25098]
[1733870381816,20.0,214.28,214.18,0.25098]
[1733870382141,20.0,214.27,214.18,0.25098]
[1733870382340,20.0,214.26,214.18,0.25098]
[1733870384118,20.0,214.27,214.18,0.25098]
[1733870384725,20.0,214.27,214.18,312.25098]
[1733870386123,10.66912825,214.3,214.18,312.25098]
[1733870386124,20.0,214.28,214.18,0.25098]
[1733870387218,20.0,214.28,214.18,9.42716538]
[1733870387948,20.0,214.27,214.18,9.42716538]
[1733870389159,20.0,214.27,214.22,0.12549]
[1733870389322,20.0,214.28,214.22,0.25098]
[1733870389658,20.0,214.29,214.22,0.12549]
[1733870390460,20.0,214.3,214.22,0.12549]
[1733870391320,20.0,214.3,214.24,6.1085]
[1733870392648,20.0,214.3,214.24,318.1085]
[1733870394555,20.0,214.3,214.25,0.12549]
[1733870394855,7.22343731,214.33,214.25,0.25098]
[1733870395263,7.22343731,214.35,214.25,0.25098]
[1733870395463,7.22343731,214.36,214.25,0.25098]
[1733870395664,7.22343731,214.36,214.25,9.42716538]
[1733870395867,7.22343731,214.37,214.25,9.42716538]
[1733870396037,7.22343731,214.37,214.26,0.25098]
[1733870396246,7.22343731,214.38,214.27,1.76078]
[1733870396804,28.89374924,214.41,214.27,1.76078]
[1733870396805,9.12984428,214.4,214.29,0.12549]
[1733870397064,7.22343731,214.41,214.31,0.25098]
[1733870397370,7.22343731,214.42,214.31,0.25098]
[1733870397744,7.22343731,214.42,214.31,312.25098]
[1733870397951,7.22343731,214.43,214.31,312.25098]
[1733870398158,7.22343731,214.43,214.31,0.25098]
[1733870398746,23.776884,214.43,214.31,0.25098]
[1733870399254,20.0,214.4,214.31,0.25098]
[1733870399858,20.0,214.41,214.31,0.25098]
[1733870400581,20.0,214.4,214.31,0.25098]
[1733870401153,20.0,214.4,214.32,312.0]
[1733870401355,20.0,214.41,214.31,0.25098]
[1733870402283,20.0,214.42,214.31,0.25098]
[1733870403077,20.0,214.43,214.31,0.25098]
[1733870403461,20.0,214.42,214.31,0.25098]
[1733870404358,20.0,214.42,214.31,312.25098]
[1733870407174,20.0,214.41,214.31,312.25098]
[1733870407989,20.0,214.38,214.31,312.12549]
[1733870408952,20.0,214.4,214.31,312.12549]
[1733870410862,20.0,214.4,214.3,6.5763]
[1733870411071,23.776884,214.39,214.3,6.5763]
[1733870411382,20.0,214.36,214.3,6.5763]
[1733870413067,23.776884,214.35,214.3,6.5763]
[1733870413399,20.0,214.32,214.27,1.5098]
[1733870421294,23.776884,214.37,214.27,1.5098]
[1733870421472,20.0,214.34,214.27,1.5098]
[1733870422073,20.0,214.38,214.27,1.5098]
[1733870422482,20.0,214.37,214.27,1.5098]
[1733870424086,20.0,214.37,214.27,313.5098]
[1733870427977,23.776884,214.37,214.27,313.5098]
[1733870428299,20.0,214.34,214.27,313.5098]
[1733870431286,20.0,214.34,214.28,0.25098]
[1733870431598,20.0,214.38,214.28,0.25098]
[1733870431801,20.0,214.39,214.28,0.25098]
[1733870431986,7.22343731,214.41,214.28,0.25098]
[1733870432190,23.776884,214.41,214.28,0.25098]
[1733870432401,23.776884,214.42,214.28,0.25098]
[1733870432895,31.00032131,214.42,214.28,0.25098]
[1733870433602,20.0,214.39,214.28,0.25098]
[1733870433820,20.0,214.39,214.3,0.12549]
[1733870434491,20.0,214.39,214.3,312.12549]
[1733870435788,20.0,214.39,214.31,0.12549]
[1733870435998,9.09647281,214.42,214.31,0.12549]
[1733870436324,7.22343731,214.42,214.31,0.12549]
[1733870436524,7.22343731,214.43,214.31,0.12549]
[1733870436700,7.22343731,214.42,214.31,0.12549]
[1733870437021,7.22343731,214.43,214.31,0.12549]
[1733870437199,20.0,214.4,214.31,0.12549]
[1733870437816,20.0,214.41,214.31,0.12549]
[1733870438927,20.0,214.41,214.32,0.12549]
[1733870440395,20.0,214.4,214.33,1.5636]
[1733870442439,20.0,214.39,214.33,313.5636]
[1733870442600,20.0,214.4,214.33,313.5636]
[1733870443017,20.0,214.4,214.34,6.4788]
[1733870443911,20.0,214.41,214.34,6.4788]
[1733870444296,20.0,214.4,214.34,6.4788]
[1733870449227,20.0,214.39,214.34,6.4788]
[1733870450020,20.0,214.4,214.34,6.4788]
[1733870451008,20.42554379,214.39,214.34,6.4788]
[1733870451810,0.42554379,214.39,214.34,6.4788]
[1733870452736,20.42554379,214.39,214.34,6.4788]
[1733870453310,0.42554379,214.39,214.34,6.4788]
[1733870453716,20.42554379,214.39,214.34,6.4788]
[1733870454126,20.0,214.38,214.34,6.4788]
[1733870454526,0.42554379,214.37,214.34,6.4788]
[1733870454712,20.0,214.36,214.33,1.5636]
[1733870454907,20.0,214.36,214.29,6.4788]
[1733870455115,20.0,214.35,214.29,6.4788]
[1733870455831,0.42554379,214.34,214.29,6.4788]
[1733870456914,20.42554379,214.34,214.29,6.4788]
[1733870457126,20.0,214.33,214.29,6.4788]
[1733870458214,20.0,214.32,214.29,6.4788]
[1733870458711,0.42554379,214.31,214.29,6.4788]
[1733870465535,0.42554379,214.31,214.29,318.4788]
[1733870467064,0.42554379,214.31,214.3,0.12549]
[1733870472153,0.42554379,214.31,214.29,6.10429]
[1733870472366,0.42554379,214.31,214.29,15.28047538]
[1733870472983,0.42554379,214.31,214.3,312.0]
[1733870473158,0.42554379,214.31,214.3,312.12549]
[1733870473584,0.42554379,214.31,214.3,312.25098]
[1733870474491,0.42554379,214.31,214.3,312.37647]
[1733870480566,0.42554379,214.31,214.17,18.690087]
[1733870480773,0.42554379,214.31,214.19,8.0475]
[1733870480981,0.42554379,214.31,214.19,17.22368538]
[1733870481385,20.0,214.29,214.19,17.22368538]
[1733870481696,0.42554379,214.28,214.19,17.22368538]
[1733870482370,24.20242779,214.28,214.19,17.22368538]
[1733870482690,24.20242779,214.28,214.19,6.4269]
[1733870483263,0.12549,214.27,214.15,18.690087]
[1733870483590,23.776884,214.24,214.15,312.0]
[1733870483995,0.42554379,214.23,214.15,312.0]
[1733870486668,0.42554379,214.23,214.14,11.35186208]
[1733870488681,0.42554379,214.23,214.14,2.1756767]
[1733870488899,0.42554379,214.23,214.14,11.35186208]
[1733870489194,0.42554379,214.23,214.14,2.1756767]
[1733870489601,0.42554379,214.23,214.17,312.0]
[1733870492779,0.42554379,214.23,214.14,2.1756767]
[1733870494091,0.42554379,214.23,214.14,11.35186208]
[1733870495705,0.42554379,214.23,214.17,312.0]
[1733870497182,3.19899513,214.23,214.17,312.0]
[1733870498177,3.19899513,214.23,214.14,11.35186208]
[1733870501094,3.19899513,214.23,214.18,312.0]
[1733870501901,3.19899513,214.23,214.14,0.5550767]
[1733870502106,3.19899513,214.23,214.14,9.73126208]
[1733870502305,0.42554379,214.23,214.14,9.73126208]
[1733870504916,0.42554379,214.23,214.14,312.5550767]
[1733870508505,0.42554379,214.23,214.14,321.73126208]
[1733870509211,0.42554379,214.23,214.14,312.5550767]
[1733870511010,0.42554379,214.23,214.14,321.76784373]
[1733870511715,0.42554379,214.23,214.14,312.5550767]
[1733870511893,3.20600367,214.23,214.14,312.5550767]
[1733870512294,3.20600367,214.23,214.14,0.5550767]
[1733870512831,3.20600367,214.23,214.14,9.76784373]
[1733870513038,0.42554379,214.23,214.17,9.21276703]
[1733870513338,0.42554379,214.23,214.15,0.37647]
[1733870514096,0.42554379,214.23,214.14,0.5550767]
[1733870515215,0.42554379,214.23,214.14,312.5550767]
[1733870521997,20.0,214.22,214.14,312.5550767]
[1733870523023,20.0,214.22,214.14,0.5550767]
[1733870526100,20.0,214.22,214.14,312.5550767]
[1733870526606,20.0,214.22,214.14,0.5550767]
[1733870529628,20.0,214.22,214.15,312.0]
[1733870533928,1.5337,214.21,214.14,0.5550767]
[1733870534129,20.0,214.2,214.14,0.5550767]
[1733870534430,20.0,214.19,214.14,0.5550767]
[1733870535004,20.0,214.18,214.14,0.5550767]
[1733870539221,23.776884,214.17,214.14,0.5550767]
[1733870540529,20.0,214.18,214.14,0.5550767]
[1733870542512,20.0,214.18,214.02,11.681]
[1733870542513,23.776884,214.15,214.0,6.331]
[1733870542920,20.0,214.14,214.04,0.25098]
[1733870544531,23.776884,214.13,214.0,6.331]
[1733870545048,23.776884,214.13,214.02,0.25098]
[1733870545441,23.776884,214.13,214.02,312.25098]
[1733870549341,21.5337,214.14,214.02,0.25098]
[1733870550861,20.0,214.14,214.03,0.12549]
[1733870551030,23.776884,214.16,214.03,0.12549]
[1733870551344,20.0,214.13,214.03,0.12549]
[1733870552329,20.0,214.13,214.08,312.0]
[1733870556349,20.0,214.13,214.03,0.12549]
[1733870559250,20.0,214.13,214.07,312.0]
[1733870562763,20.0,214.13,214.03,0.12549]
[1733870565651,20.0,214.13,214.07,312.0]
[1733870566034,20.0,214.13,214.03,0.12549]
[1733870569026,20.0,214.13,214.07,312.0]
[1733870572246,20.0,214.13,214.03,0.12549]
[1733870574661,20.0,214.13,214.04,0.25098]
[1733870575164,20.0,214.13,214.05,312.0]
[1733870582385,20.0,214.13,214.04,0.25098]
[1733870582871,20.0,214.13,214.02,0.25098]
[1733870584794,20.0,214.13,214.02,0.82614153]
[1733870585386,20.0,214.13,214.07,312.0]
[1733870586259,20.0,214.14,214.07,312.0]
[1733870587561,20.0,214.13,214.07,312.0]
[1733870590359,20.0,214.13,214.04,0.37647]
[1733870590791,20.0,214.12,214.04,0.37647]
[1733870594183,7.22343731,214.15,214.02,0.25098]
[1733870594511,23.776884,214.12,213.98,11.44673961]
[1733870594691,23.776884,214.12,213.98,9.221535]
[1733870594990,7.22343731,214.1,213.94,0.70071931]
[1733870595295,14.44687462,214.11,213.97,9.22153446]
[1733870595296,7.22343731,214.08,213.97,9.22153446]
[1733870595487,20.0,214.06,213.98,0.25098]
[1733870595661,20.0,214.05,213.97,9.22153446]
[1733870595870,20.0,214.05,213.94,0.70071931]
[1733870596069,20.0,214.05,213.97,9.22153446]
[1733870596485,20.0,214.05,213.98,312.0]
[1733870597172,1.86941442,214.09,213.99,0.25098]
[1733870597173,20.0,214.06,213.99,0.25098]
[1733870597678,20.0,214.06,213.99,0.12549]
[1733870598573,20.0,214.07,213.99,0.12549]
[1733870600189,20.0,214.07,213.95,0.25098]
[1733870600384,20.0,214.07,213.99,0.12549]
[1733870600773,20.0,214.09,213.99,0.12549]
[1733870603000,20.0,214.09,213.99,312.12549]
[1733870603885,20.0,214.09,213.99,312.0]
[1733870604203,23.776884,214.08,213.99,312.0]
[1733870607193,20.0,214.09,214.0,0.25098]
[1733870607385,20.0,214.1,214.0,9.47251446]
[1733870607594,1.6166,214.13,214.03,0.25098]
[1733870607781,9.12944546,214.15,214.04,9.47251446]
[1733870607977,37.02844924,214.18,214.04,9.47251446]
[1733870607978,15.35813731,214.18,214.04,9.47251446]
[1733870608701,8.1347,214.18,214.04,9.47251446]
[1733870609208,2.82290963,214.17,214.06,0.12549]
[1733870609425,20.0,214.16,214.06,0.25098]
[1733870609713,20.0,214.17,214.06,0.25098]